[Event "*** SCC Grand Prix: Titled Tuesday Blitz"]
[Site "Chess.com"]
[Date "2020.07.07"]
[Round "3"]
[White "monalize"]
[Black "Stormeman100100"]
[Result "1-0"]
[WhiteElo "2262"]
[BlackElo "2431"]
[TimeControl "180+1"]
[EndTime "10:30:12 PDT"]
[Termination "monalize won by checkmate"]

1. e4 {[%clk 0:03:00.9]} 1... e5 {[%clk 0:02:59.7]} 2. Nf3 {[%clk 0:02:59.6]}
2... Nc6 {[%clk 0:02:59.7]} 3. d4 {[%clk 0:02:58.9]} 3... exd4 {[%clk
0:02:59.3]} 4. Nxd4 {[%clk 0:02:58.7]} 4... Nf6 {[%clk 0:02:59.7]} 5. Nxc6
{[%clk 0:02:54.5]} 5... bxc6 {[%clk 0:03:00.6]} 6. e5 {[%clk 0:02:54.8]} 6...
Qe7 {[%clk 0:03:00.5]} 7. Qe2 {[%clk 0:02:53.8]} 7... Nd5 {[%clk 0:02:59.8]} 8.
c4 {[%clk 0:02:53.2]} 8... Ba6 {[%clk 0:02:58.6]} 9. b3 {[%clk 0:02:47.4]} 9...
g6 {[%clk 0:02:56.5]} 10. Bb2 {[%clk 0:02:43.6]} 10... Bg7 {[%clk 0:02:56.3]}
11. Nd2 {[%clk 0:02:41.7]} 11... O-O {[%clk 0:02:53.5]} 12. Qe4 {[%clk
0:02:39.6]} 12... Nb6 {[%clk 0:02:37.3]} 13. O-O-O {[%clk 0:02:28.6]} 13... d5
{[%clk 0:02:26.6]} 14. exd6 {[%clk 0:02:27]} 14... Bxb2+ {[%clk 0:02:25]} 15.
Kxb2 {[%clk 0:02:27]} 15... Qf6+ {[%clk 0:02:24.6]} 16. Kb1 {[%clk 0:02:25.7]}
16... cxd6 {[%clk 0:02:11.6]} 17. Qf3 {[%clk 0:02:22.4]} 17... Qe5 {[%clk
0:01:57.8]} 18. Bd3 {[%clk 0:02:19.8]} 18... d5 {[%clk 0:01:49.4]} 19. cxd5
{[%clk 0:02:12.3]} 19... Bxd3+ {[%clk 0:01:28.4]} 20. Qxd3 {[%clk 0:02:13.2]}
20... Nxd5 {[%clk 0:01:28.5]} 21. Nf3 {[%clk 0:01:58.6]} 21... Qf6 {[%clk
0:01:26.4]} 22. Rc1 {[%clk 0:01:56.6]} 22... a5 {[%clk 0:01:20.4]} 23. Qd4
{[%clk 0:01:41.6]} 23... Qf5+ {[%clk 0:01:17.1]} 24. Ka1 {[%clk 0:01:41.3]}
24... a4 {[%clk 0:01:14.4]} 25. b4 {[%clk 0:01:40.5]} 25... a3 {[%clk
0:01:05.9]} 26. Rxc6 {[%clk 0:01:36.7]} 26... Rab8 {[%clk 0:00:57.4]} 27. Rb1
{[%clk 0:01:26.8]} 27... Rfd8 {[%clk 0:00:30.8]} 28. Rc5 {[%clk 0:01:25.7]}
28... Qxb1+ {[%clk 0:00:21.1]} 29. Kxb1 {[%clk 0:01:24.2]} 29... Rxb4+ {[%clk
0:00:22]} 30. Qxb4 {[%clk 0:01:22.4]} 30... Nxb4 {[%clk 0:00:22.9]} 31. Kc1
{[%clk 0:01:04.4]} 31... Nxa2+ {[%clk 0:00:21.7]} 32. Kc2 {[%clk 0:01:04.7]}
32... Nb4+ {[%clk 0:00:19.6]} 33. Kb3 {[%clk 0:01:04]} 33... Nd3 {[%clk
0:00:15.3]} 34. Ra5 {[%clk 0:00:50.3]} 34... Rb8+ {[%clk 0:00:10.1]} 35. Kxa3
{[%clk 0:00:49.8]} 35... Nxf2 {[%clk 0:00:08.5]} 36. Rd5 {[%clk 0:00:46.6]}
36... Ne4 {[%clk 0:00:07.8]} 37. Rd7 {[%clk 0:00:41.7]} 37... Nf6 {[%clk
0:00:06.5]} 38. Ra7 {[%clk 0:00:39.7]} 38... Rb5 {[%clk 0:00:06.3]} 39. h4
{[%clk 0:00:36.1]} 39... h6 {[%clk 0:00:05.8]} 40. Ka4 {[%clk 0:00:35]} 40...
Kg7 {[%clk 0:00:06.3]} 41. Kxb5 {[%clk 0:00:34.5]} 41... Ne4 {[%clk 0:00:06.6]}
42. Kc4 {[%clk 0:00:34.2]} 42... Nd6+ {[%clk 0:00:06.7]} 43. Kd5 {[%clk
0:00:34.3]} 43... Nb5 {[%clk 0:00:05.5]} 44. Rb7 {[%clk 0:00:33.3]} 44... Nc3+
{[%clk 0:00:05.6]} 45. Kd4 {[%clk 0:00:32.8]} 45... Ne2+ {[%clk 0:00:04.4]} 46.
Ke3 {[%clk 0:00:32.5]} 46... Ng3 {[%clk 0:00:04.4]} 47. Ne5 {[%clk 0:00:31.3]}
47... Nf5+ {[%clk 0:00:04]} 48. Kf4 {[%clk 0:00:31]} 48... Nd6 {[%clk
0:00:03.7]} 49. Rd7 {[%clk 0:00:29.9]} 49... Nb5 {[%clk 0:00:03.8]} 50. Rxf7+
{[%clk 0:00:29.3]} 50... Kg8 {[%clk 0:00:04.1]} 51. Rd7 {[%clk 0:00:28.8]} 51...
Nc3 {[%clk 0:00:04.5]} 52. Nxg6 {[%clk 0:00:27.8]} 52... Ne2+ {[%clk 0:00:04.9]}
53. Ke5 {[%clk 0:00:26.6]} 53... Ng3 {[%clk 0:00:04.8]} 54. Ra7 {[%clk
0:00:23.7]} 54... Nh5 {[%clk 0:00:04]} 55. g4 {[%clk 0:00:22.4]} 55... Ng7
{[%clk 0:00:03.7]} 56. Nf4 {[%clk 0:00:18.4]} 56... h5 {[%clk 0:00:03.4]} 57.
gxh5 {[%clk 0:00:18]} 57... Ne8 {[%clk 0:00:03]} 58. Kf5 {[%clk 0:00:17.1]}
58... Nd6+ {[%clk 0:00:02.5]} 59. Kg6 {[%clk 0:00:16.9]} 59... Ne8 {[%clk
0:00:02.8]} 60. Ne6 {[%clk 0:00:16.2]} 60... Nd6 {[%clk 0:00:02.6]} 61. Ra8+
{[%clk 0:00:15.8]} 61... Ne8 {[%clk 0:00:02.9]} 62. Rxe8# {[%clk 0:00:15.4]} 1-0

[Event "*** SCC Grand Prix: Titled Tuesday Blitz"]
[Site "Chess.com"]
[Date "2020.07.07"]
[Round "3"]
[White "GM4life"]
[Black "Bazarov04"]
[Result "1-0"]
[WhiteElo "2350"]
[BlackElo "2607"]
[TimeControl "180+1"]
[EndTime "10:30:13 PDT"]
[Termination "GM4life won by resignation"]

1. e4 {[%clk 0:03:00.9]} 1... e6 {[%clk 0:02:59.6]} 2. d3 {[%clk 0:03:00.6]}
2... d5 {[%clk 0:03:00]} 3. Nc3 {[%clk 0:02:59.6]} 3... Nf6 {[%clk 0:02:59.7]}
4. Nf3 {[%clk 0:02:56.6]} 4... c5 {[%clk 0:02:56.6]} 5. Be2 {[%clk 0:02:56.7]}
5... Nc6 {[%clk 0:02:56.7]} 6. O-O {[%clk 0:02:57]} 6... Be7 {[%clk 0:02:57.1]}
7. exd5 {[%clk 0:02:56.8]} 7... exd5 {[%clk 0:02:57.1]} 8. Re1 {[%clk
0:02:57.7]} 8... O-O {[%clk 0:02:56.9]} 9. h3 {[%clk 0:02:58.3]} 9... d4 {[%clk
0:02:57]} 10. Nb1 {[%clk 0:02:56.9]} 10... Nd5 {[%clk 0:02:57.3]} 11. Nbd2
{[%clk 0:02:56.5]} 11... Be6 {[%clk 0:02:57.7]} 12. Nc4 {[%clk 0:02:54.8]} 12...
h6 {[%clk 0:02:57.5]} 13. Bf1 {[%clk 0:02:55]} 13... Qc7 {[%clk 0:02:57.1]} 14.
Nce5 {[%clk 0:02:52.4]} 14... Nxe5 {[%clk 0:02:56.9]} 15. Nxe5 {[%clk
0:02:53.3]} 15... Bd6 {[%clk 0:02:57.2]} 16. Nc4 {[%clk 0:02:52.2]} 16... Be7
{[%clk 0:02:57.2]} 17. a4 {[%clk 0:02:51.3]} 17... Rfe8 {[%clk 0:02:56.9]} 18.
Qf3 {[%clk 0:02:51.1]} 18... Bf6 {[%clk 0:02:56]} 19. Bd2 {[%clk 0:02:51.2]}
19... Rad8 {[%clk 0:02:54]} 20. a5 {[%clk 0:02:40.9]} 20... Bg5 {[%clk
0:02:52.9]} 21. Bxg5 {[%clk 0:02:37.2]} 21... hxg5 {[%clk 0:02:53.8]} 22. Qh5
{[%clk 0:02:34.7]} 22... f6 {[%clk 0:02:52.8]} 23. g3 {[%clk 0:02:32.5]} 23...
Bf7 {[%clk 0:02:52.7]} 24. Qf3 {[%clk 0:02:30.2]} 24... Qd7 {[%clk 0:02:50]} 25.
Bg2 {[%clk 0:02:29.6]} 25... Kf8 {[%clk 0:02:39]} 26. Kh2 {[%clk 0:02:23.8]}
26... Re7 {[%clk 0:02:21.9]} 27. Rxe7 {[%clk 0:02:21.7]} 27... Qxe7 {[%clk
0:02:22.8]} 28. Qf5 {[%clk 0:02:19]} 28... Kg8 {[%clk 0:02:15.4]} 29. Be4 {[%clk
0:02:06.8]} 29... g6 {[%clk 0:02:13.7]} 30. Qf3 {[%clk 0:01:59.4]} 30... f5
{[%clk 0:02:13.9]} 31. Bxd5 {[%clk 0:01:58.8]} 31... Bxd5 {[%clk 0:02:14.5]} 32.
Qd1 {[%clk 0:01:51.2]} 32... Re8 {[%clk 0:02:13.9]} 33. Qd2 {[%clk 0:01:50.2]}
33... Qe2 {[%clk 0:02:13.6]} 34. Rd1 {[%clk 0:01:45.9]} 34... Qxd2 {[%clk
0:02:12.6]} 35. Nxd2 {[%clk 0:01:44.4]} 35... Re2 {[%clk 0:02:11.5]} 36. Kg1
{[%clk 0:01:44.8]} 36... Kf7 {[%clk 0:02:04.7]} 37. Kf1 {[%clk 0:01:43.5]} 37...
Re8 {[%clk 0:01:58.2]} 38. c3 {[%clk 0:01:40.2]} 38... Rh8 {[%clk 0:01:54.8]}
39. cxd4 {[%clk 0:01:35.2]} 39... cxd4 {[%clk 0:01:55.1]} 40. Rc1 {[%clk
0:01:34.6]} 40... Rxh3 {[%clk 0:01:54.3]} 41. Rc7+ {[%clk 0:01:32.9]} 41... Ke6
{[%clk 0:01:53.8]} 42. Rg7 {[%clk 0:01:28.7]} 42... Rh1+ {[%clk 0:01:45.8]} 43.
Ke2 {[%clk 0:01:24.2]} 43... Kf6 {[%clk 0:01:39.5]} 44. Rd7 {[%clk 0:01:22.5]}
44... Ke5 {[%clk 0:01:15.1]} 45. Rg7 {[%clk 0:01:18.8]} 45... Ra1 {[%clk
0:01:06.7]} 46. Rxg6 {[%clk 0:01:17.5]} 46... Rxa5 {[%clk 0:01:01.5]} 47. Rxg5
{[%clk 0:01:17.3]} 47... Rb5 {[%clk 0:01:00]} 48. g4 {[%clk 0:01:16.6]} 48...
Rxb2 {[%clk 0:00:56.4]} 49. Rxf5+ {[%clk 0:01:15.2]} 49... Ke6 {[%clk
0:00:56.5]} 50. Rf4 {[%clk 0:01:07.4]} 50... a5 {[%clk 0:00:56.4]} 51. Rxd4
{[%clk 0:01:06.9]} 51... b5 {[%clk 0:00:56.6]} 52. Ke3 {[%clk 0:01:06]} 52... a4
{[%clk 0:00:55.3]} 53. Ne4 {[%clk 0:00:54.6]} 53... a3 {[%clk 0:00:43.4]} 54.
Nc3 {[%clk 0:00:45.3]} 54... a2 {[%clk 0:00:41.8]} 55. Nxa2 {[%clk 0:00:40.2]}
55... Rxa2 {[%clk 0:00:42.7]} 56. g5 {[%clk 0:00:39.3]} 56... Ra8 {[%clk
0:00:41.1]} 57. f4 {[%clk 0:00:39.1]} 57... Kd6 {[%clk 0:00:37.1]} 58. f5 {[%clk
0:00:39.1]} 58... Kc5 {[%clk 0:00:31.3]} 59. g6 {[%clk 0:00:32.7]} 59... b4
{[%clk 0:00:26.4]} 60. f6 {[%clk 0:00:32.8]} 60... Re8+ {[%clk 0:00:20.5]} 61.
Re4 {[%clk 0:00:29.7]} 61... Rb8 {[%clk 0:00:20.2]} 62. f7 {[%clk 0:00:24.1]}
62... Bxe4 {[%clk 0:00:18.1]} 63. g7 {[%clk 0:00:19]} 63... Bd5 {[%clk
0:00:16.2]} 64. f8=Q+ {[%clk 0:00:19]} 64... Rxf8 {[%clk 0:00:05.3]} 65. gxf8=Q+
{[%clk 0:00:19.9]} 65... Kb5 {[%clk 0:00:05.4]} 66. Qb8+ {[%clk 0:00:19.5]} 1-0

[Event "*** SCC Grand Prix: Titled Tuesday Blitz"]
[Site "Chess.com"]
[Date "2020.07.07"]
[Round "3"]
[White "Marty435"]
[Black "pavlitas17"]
[Result "1-0"]
[WhiteElo "2511"]
[BlackElo "2286"]
[TimeControl "180+1"]
[EndTime "10:30:14 PDT"]
[Termination "Marty435 won by checkmate"]

1. Nf3 {[%clk 0:03:00.9]} 1... Nf6 {[%clk 0:02:59.3]} 2. c4 {[%clk 0:03:00]}
2... g6 {[%clk 0:03:00.1]} 3. Nc3 {[%clk 0:03:00.1]} 3... Bg7 {[%clk 0:03:00.7]}
4. e4 {[%clk 0:03:00.4]} 4... d6 {[%clk 0:03:01.4]} 5. d4 {[%clk 0:03:00.7]}
5... O-O {[%clk 0:03:02.1]} 6. h3 {[%clk 0:03:00.9]} 6... c5 {[%clk 0:03:01.2]}
7. d5 {[%clk 0:03:00.6]} 7... e6 {[%clk 0:03:01.8]} 8. Bd3 {[%clk 0:03:00.5]}
8... exd5 {[%clk 0:03:02.4]} 9. cxd5 {[%clk 0:03:01.2]} 9... Bd7 {[%clk
0:02:59.7]} 10. a4 {[%clk 0:02:58.9]} 10... b5 {[%clk 0:03:00.4]} 11. axb5
{[%clk 0:02:58.3]} 11... c4 {[%clk 0:02:57.7]} 12. Bc2 {[%clk 0:02:52.7]} 12...
Qb6 {[%clk 0:02:54.4]} 13. O-O {[%clk 0:02:50]} 13... Bxb5 {[%clk 0:02:53.6]}
14. Be3 {[%clk 0:02:48.7]} 14... Qb7 {[%clk 0:02:53.2]} 15. Bf4 {[%clk
0:02:02.5]} 15... Rd8 {[%clk 0:02:46.3]} 16. Qd2 {[%clk 0:01:37.1]} 16... Ne8
{[%clk 0:02:41.1]} 17. Nd4 {[%clk 0:01:29.8]} 17... Bd7 {[%clk 0:02:33.1]} 18.
Bg5 {[%clk 0:01:30]} 18... f6 {[%clk 0:02:27.4]} 19. Be3 {[%clk 0:01:29.8]}
19... Na6 {[%clk 0:02:20.2]} 20. Ba4 {[%clk 0:01:19.7]} 20... Nc5 {[%clk
0:02:18.2]} 21. Bxd7 {[%clk 0:01:19]} 21... Rxd7 {[%clk 0:02:15]} 22. Qe2 {[%clk
0:01:14.5]} 22... Nb3 {[%clk 0:02:10.8]} 23. Ra4 {[%clk 0:01:09.5]} 23... f5
{[%clk 0:02:04.4]} 24. Rxc4 {[%clk 0:00:47.9]} 24... f4 {[%clk 0:01:59.5]} 25.
Nxb3 {[%clk 0:00:39.6]} 25... fxe3 {[%clk 0:01:59.4]} 26. Na5 {[%clk 0:00:38.7]}
26... Qb6 {[%clk 0:01:54.1]} 27. Nc6 {[%clk 0:00:37]} 27... exf2+ {[%clk
0:01:52.2]} 28. Rxf2 {[%clk 0:00:37.4]} 28... Rf7 {[%clk 0:01:48.9]} 29. Na4
{[%clk 0:00:33.1]} 29... Qxf2+ {[%clk 0:01:42.2]} 30. Qxf2 {[%clk 0:00:33.1]}
30... Rxf2 {[%clk 0:01:42.5]} 31. Kxf2 {[%clk 0:00:34]} 31... Kf7 {[%clk
0:01:39.6]} 32. Rb4 {[%clk 0:00:31.8]} 32... Rc8 {[%clk 0:01:35.8]} 33. Rb7+
{[%clk 0:00:31.9]} 33... Rc7 {[%clk 0:01:35.9]} 34. Rxa7 {[%clk 0:00:26.6]}
34... Rxa7 {[%clk 0:01:33.3]} 35. Nxa7 {[%clk 0:00:27.5]} 35... Bd4+ {[%clk
0:01:32.9]} 36. Ke2 {[%clk 0:00:28.1]} 36... Bxa7 {[%clk 0:01:33.1]} 37. Kd3
{[%clk 0:00:28.7]} 37... Nf6 {[%clk 0:01:30.2]} 38. Kc4 {[%clk 0:00:29.1]} 38...
Nxe4 {[%clk 0:01:28.1]} 39. Kb5 {[%clk 0:00:29.7]} 39... Ke7 {[%clk 0:01:26.6]}
40. Kc6 {[%clk 0:00:29.8]} 40... Bd4 {[%clk 0:01:21.6]} 41. b4 {[%clk
0:00:29.9]} 41... Nc3 {[%clk 0:01:06.7]} 42. Nxc3 {[%clk 0:00:27]} 42... Bxc3
{[%clk 0:01:06.6]} 43. b5 {[%clk 0:00:27.9]} 43... Ba5 {[%clk 0:00:42.8]} 44. b6
{[%clk 0:00:26.9]} 44... Kd8 {[%clk 0:00:42.5]} 45. Kb7 {[%clk 0:00:18.7]} 45...
g5 {[%clk 0:00:20.3]} 46. Ka7 {[%clk 0:00:13.5]} 46... Bxb6+ {[%clk 0:00:17.8]}
47. Kxb6 {[%clk 0:00:13.6]} 47... Kd7 {[%clk 0:00:16.5]} 48. g4 {[%clk
0:00:10.4]} 48... Kd8 {[%clk 0:00:09.2]} 49. Kc6 {[%clk 0:00:10.4]} 49... Ke7
{[%clk 0:00:09.9]} 50. Kc7 {[%clk 0:00:11]} 50... h6 {[%clk 0:00:08]} 51. Kc6
{[%clk 0:00:11.3]} 51... Kf6 {[%clk 0:00:07.5]} 52. Kxd6 {[%clk 0:00:11.7]}
52... Kf7 {[%clk 0:00:07.2]} 53. Ke5 {[%clk 0:00:11.8]} 53... Ke7 {[%clk
0:00:07.5]} 54. Kf5 {[%clk 0:00:12.3]} 54... Kd6 {[%clk 0:00:07.5]} 55. Kg6
{[%clk 0:00:12.9]} 55... Kxd5 {[%clk 0:00:08.4]} 56. Kxh6 {[%clk 0:00:13.4]}
56... Ke6 {[%clk 0:00:09.3]} 57. Kxg5 {[%clk 0:00:14.2]} 57... Kf7 {[%clk
0:00:09.9]} 58. h4 {[%clk 0:00:15.1]} 58... Kg7 {[%clk 0:00:10.2]} 59. h5 {[%clk
0:00:16]} 59... Kh7 {[%clk 0:00:10.9]} 60. h6 {[%clk 0:00:16.9]} 60... Kg8
{[%clk 0:00:11.8]} 61. Kg6 {[%clk 0:00:17.3]} 61... Kh8 {[%clk 0:00:12.7]} 62.
g5 {[%clk 0:00:15.9]} 62... Kg8 {[%clk 0:00:13.6]} 63. Kh5 {[%clk 0:00:15.2]}
63... Kh8 {[%clk 0:00:12.4]} 64. g6 {[%clk 0:00:15.8]} 64... Kg8 {[%clk
0:00:13.3]} 65. Kg5 {[%clk 0:00:15.8]} 65... Kh8 {[%clk 0:00:13.7]} 66. Kf6
{[%clk 0:00:16.4]} 66... Kg8 {[%clk 0:00:14.6]} 67. g7 {[%clk 0:00:15.6]} 67...
Kh7 {[%clk 0:00:14.2]} 68. Kf7 {[%clk 0:00:16.5]} 68... Kxh6 {[%clk 0:00:15.1]}
69. g8=Q {[%clk 0:00:17.1]} 69... Kh5 {[%clk 0:00:15.1]} 70. Qg3 {[%clk
0:00:17.8]} 70... Kh6 {[%clk 0:00:14.6]} 71. Qh4# {[%clk 0:00:18.7]} 1-0

[Event "*** SCC Grand Prix: Titled Tuesday Blitz"]
[Site "Chess.com"]
[Date "2020.07.07"]
[Round "3"]
[White "karinachess1"]
[Black "1f3_2g41-0"]
[Result "0-1"]
[WhiteElo "2493"]
[BlackElo "2289"]
[TimeControl "180+1"]
[EndTime "10:30:15 PDT"]
[Termination "1f3_2g41-0 won by resignation"]

1. c4 {[%clk 0:02:57.6]} 1... Nf6 {[%clk 0:02:55.8]} 2. Nc3 {[%clk 0:02:55]}
2... c5 {[%clk 0:02:52.2]} 3. Nf3 {[%clk 0:02:53.8]} 3... g6 {[%clk 0:02:50.8]}
4. d4 {[%clk 0:02:51.4]} 4... cxd4 {[%clk 0:02:51.4]} 5. Nxd4 {[%clk 0:02:52.3]}
5... Bg7 {[%clk 0:02:51.6]} 6. e4 {[%clk 0:02:52.5]} 6... d6 {[%clk 0:02:51.2]}
7. Be2 {[%clk 0:02:52.1]} 7... O-O {[%clk 0:02:51.8]} 8. O-O {[%clk 0:02:51.9]}
8... Nc6 {[%clk 0:02:50.6]} 9. Nc2 {[%clk 0:02:51.6]} 9... h5 {[%clk 0:02:46.6]}
10. Bg5 {[%clk 0:02:45.9]} 10... Bg4 {[%clk 0:02:42.1]} 11. f3 {[%clk
0:02:42.5]} 11... Be6 {[%clk 0:02:33.7]} 12. Qd2 {[%clk 0:02:33.2]} 12... Rc8
{[%clk 0:02:26.5]} 13. Rac1 {[%clk 0:02:18.4]} 13... Nd7 {[%clk 0:01:36.3]} 14.
Rfd1 {[%clk 0:02:06.3]} 14... Qb6+ {[%clk 0:01:35.1]} 15. Ne3 {[%clk 0:01:39.9]}
15... Qc5 {[%clk 0:01:08.2]} 16. Bf4 {[%clk 0:01:32.9]} 16... Nd4 {[%clk
0:00:56.5]} 17. Bf1 {[%clk 0:01:30.3]} 17... Ne5 {[%clk 0:00:52]} 18. Kh1 {[%clk
0:01:25.8]} 18... Nec6 {[%clk 0:00:31.9]} 19. Ned5 {[%clk 0:01:15.2]} 19... Bxd5
{[%clk 0:00:30.3]} 20. exd5 {[%clk 0:01:12.3]} 20... Na5 {[%clk 0:00:23.4]} 21.
Ne4 {[%clk 0:00:58.6]} 21... Qc7 {[%clk 0:00:21.9]} 22. b4 {[%clk 0:00:45.6]}
22... Nab3 {[%clk 0:00:19.8]} 23. axb3 {[%clk 0:00:46.5]} 23... Nxb3 {[%clk
0:00:20.3]} 24. Qc2 {[%clk 0:00:45.8]} 24... Nxc1 {[%clk 0:00:20.8]} 25. Rxc1
{[%clk 0:00:46.7]} 25... a5 {[%clk 0:00:17.9]} 26. Qb3 {[%clk 0:00:41.6]} 26...
Qb6 {[%clk 0:00:16.7]} 27. b5 {[%clk 0:00:37.4]} 27... Bd4 {[%clk 0:00:15]} 28.
Bd3 {[%clk 0:00:33.2]} 28... Kg7 {[%clk 0:00:14.3]} 29. Qd1 {[%clk 0:00:30]}
29... Be3 {[%clk 0:00:14.1]} 30. Bxe3 {[%clk 0:00:26.1]} 30... Qxe3 {[%clk
0:00:15]} 31. Rb1 {[%clk 0:00:19.1]} 31... b6 {[%clk 0:00:15]} 32. Qf1 {[%clk
0:00:16.4]} 32... Rcd8 {[%clk 0:00:08.8]} 33. Re1 {[%clk 0:00:16.4]} 33... Qd4
{[%clk 0:00:08.7]} 34. Ng5 {[%clk 0:00:16]} 34... Rd7 {[%clk 0:00:07.4]} 35. Qe2
{[%clk 0:00:13.8]} 35... Qh4 {[%clk 0:00:07.1]} 36. Ne4 {[%clk 0:00:11.1]} 36...
e5 {[%clk 0:00:06.9]} 37. dxe6 {[%clk 0:00:09.4]} 37... fxe6 {[%clk 0:00:06.5]}
38. Ng3 {[%clk 0:00:09.5]} 38... Re7 {[%clk 0:00:05.5]} 39. Qb2+ {[%clk
0:00:07.3]} 39... Qf6 {[%clk 0:00:04.1]} 40. Qxf6+ {[%clk 0:00:07.1]} 40... Rxf6
{[%clk 0:00:05]} 41. Ne4 {[%clk 0:00:07.1]} 41... Rf4 {[%clk 0:00:04.2]} 42. Ng5
{[%clk 0:00:03.9]} 42... Rd4 {[%clk 0:00:05.1]} 43. Nxe6+ {[%clk 0:00:03.3]}
43... Rxe6 {[%clk 0:00:05.6]} 44. Rxe6 {[%clk 0:00:04.2]} 44... Rxd3 {[%clk
0:00:06.2]} 45. Kg1 {[%clk 0:00:04.6]} 45... a4 {[%clk 0:00:06.5]} 46. Re7+
{[%clk 0:00:05]} 46... Kf6 {[%clk 0:00:06.5]} 47. Rb7 {[%clk 0:00:05.5]} 47...
a3 {[%clk 0:00:07.2]} 48. Ra7 {[%clk 0:00:05.3]} 48... Ke5 {[%clk 0:00:06.9]}
49. Kf2 {[%clk 0:00:05.5]} 49... Kd4 {[%clk 0:00:07.4]} 50. g4 {[%clk
0:00:05.2]} 50... Kxc4 {[%clk 0:00:06.7]} 51. gxh5 {[%clk 0:00:04.8]} 51... gxh5
{[%clk 0:00:07.6]} 52. f4 {[%clk 0:00:05.7]} 52... Kb3 {[%clk 0:00:07.4]} 53. f5
{[%clk 0:00:06]} 53... a2 {[%clk 0:00:06.5]} 54. f6 {[%clk 0:00:06.3]} 54... Rd5
{[%clk 0:00:07.1]} 55. Ke3 {[%clk 0:00:06.1]} 55... Rf5 {[%clk 0:00:06]} 56. f7
{[%clk 0:00:07]} 56... Kb2 {[%clk 0:00:05.3]} 57. Ke4 {[%clk 0:00:06.5]} 57...
Rxf7 {[%clk 0:00:05.5]} 58. Ra6 {[%clk 0:00:06.4]} 58... a1=Q {[%clk 0:00:05.7]}
59. Rxa1 {[%clk 0:00:07]} 59... Kxa1 {[%clk 0:00:06.6]} 60. Kd5 {[%clk
0:00:07.8]} 60... Rf6 {[%clk 0:00:07]} 61. Kc6 {[%clk 0:00:08]} 61... Kb2 {[%clk
0:00:07.6]} 62. Kxb6 {[%clk 0:00:08.6]} 62... Kb3 {[%clk 0:00:08.1]} 63. Kc6
{[%clk 0:00:09]} 63... Kb4 {[%clk 0:00:08.4]} 64. b6 {[%clk 0:00:09.5]} 64...
d5+ {[%clk 0:00:09]} 65. Kxd5 {[%clk 0:00:09.7]} 65... Rxb6 {[%clk 0:00:08.8]}
66. Ke5 {[%clk 0:00:10.6]} 66... Rg6 {[%clk 0:00:09]} 67. Kf5 {[%clk 0:00:10.7]}
67... Rg2 {[%clk 0:00:09.5]} 0-1

[Event "*** SCC Grand Prix: Titled Tuesday Blitz"]
[Site "Chess.com"]
[Date "2020.07.07"]
[Round "3"]
[White "PSvidler"]
[Black "chargemax23"]
[Result "1/2-1/2"]
[WhiteElo "3003"]
[BlackElo "2688"]
[TimeControl "180+1"]
[EndTime "10:30:16 PDT"]
[Termination "Game drawn - insufficient material"]

1. e4 {[%clk 0:03:00.9]} 1... g6 {[%clk 0:02:58.6]} 2. d4 {[%clk 0:02:58.5]}
2... Bg7 {[%clk 0:02:58.8]} 3. Nc3 {[%clk 0:02:57.9]} 3... d6 {[%clk 0:02:58.5]}
4. Be3 {[%clk 0:02:49.8]} 4... a6 {[%clk 0:02:57.8]} 5. f4 {[%clk 0:02:44.3]}
5... Nf6 {[%clk 0:02:53]} 6. Nf3 {[%clk 0:02:42.8]} 6... O-O {[%clk 0:02:48.7]}
7. e5 {[%clk 0:02:41.4]} 7... dxe5 {[%clk 0:02:47.1]} 8. dxe5 {[%clk 0:02:36.5]}
8... Ng4 {[%clk 0:02:37.1]} 9. Bc5 {[%clk 0:02:24.9]} 9... Nc6 {[%clk
0:02:32.6]} 10. h3 {[%clk 0:02:22.7]} 10... Nh6 {[%clk 0:02:29.7]} 11. g4 {[%clk
0:02:22.4]} 11... f6 {[%clk 0:01:55.5]} 12. exf6 {[%clk 0:02:17.3]} 12... Bxf6
{[%clk 0:01:53.8]} 13. Bc4+ {[%clk 0:02:12.7]} 13... Nf7 {[%clk 0:01:31.7]} 14.
Qe2 {[%clk 0:02:09.7]} 14... Na5 {[%clk 0:01:11.4]} 15. Rd1 {[%clk 0:02:06.2]}
15... Qe8 {[%clk 0:01:10.9]} 16. Bd5 {[%clk 0:02:02.5]} 16... c6 {[%clk
0:01:00]} 17. Be4 {[%clk 0:01:30.2]} 17... b5 {[%clk 0:00:59.8]} 18. O-O {[%clk
0:01:25.1]} 18... Nc4 {[%clk 0:00:57]} 19. Nd4 {[%clk 0:01:18.4]} 19... Bd7
{[%clk 0:00:55.2]} 20. b3 {[%clk 0:01:12]} 20... Ncd6 {[%clk 0:00:54]} 21. Bg2
{[%clk 0:01:10.8]} 21... e5 {[%clk 0:00:46]} 22. fxe5 {[%clk 0:00:50.2]} 22...
Qxe5 {[%clk 0:00:46.1]} 23. Qxe5 {[%clk 0:00:50.1]} 23... Bxe5 {[%clk
0:00:45.8]} 24. Nxc6 {[%clk 0:00:50]} 24... Bxc6 {[%clk 0:00:40.6]} 25. Bxc6
{[%clk 0:00:49.7]} 25... Rac8 {[%clk 0:00:40.7]} 26. Nd5 {[%clk 0:00:50.3]}
26... Kg7 {[%clk 0:00:38.1]} 27. Nb4 {[%clk 0:00:37.5]} 27... a5 {[%clk
0:00:36.8]} 28. Nd3 {[%clk 0:00:32.7]} 28... Rxc6 {[%clk 0:00:35.7]} 29. Nxe5
{[%clk 0:00:32.9]} 29... Rxc5 {[%clk 0:00:36.1]} 30. Nd7 {[%clk 0:00:33.2]}
30... Rfc8 {[%clk 0:00:34.7]} 31. Nxc5 {[%clk 0:00:33.2]} 31... Rxc5 {[%clk
0:00:34.9]} 32. Rd2 {[%clk 0:00:33.1]} 32... Ne4 {[%clk 0:00:30.8]} 33. Rd7
{[%clk 0:00:33]} 33... Nf6 {[%clk 0:00:30.4]} 34. Ra7 {[%clk 0:00:32.8]} 34...
b4 {[%clk 0:00:29.8]} 35. Rf4 {[%clk 0:00:31.6]} 35... Rd5 {[%clk 0:00:13]} 36.
Rc4 {[%clk 0:00:29.5]} 36... Ne8 {[%clk 0:00:12.7]} 37. Rc8 {[%clk 0:00:28]}
37... Nd6 {[%clk 0:00:12.8]} 38. Rcc7 {[%clk 0:00:25.3]} 38... Rd1+ {[%clk
0:00:11.9]} 39. Kf2 {[%clk 0:00:25.2]} 39... Rd5 {[%clk 0:00:12.7]} 40. Ke3
{[%clk 0:00:25.2]} 40... Kf6 {[%clk 0:00:12.9]} 41. c4 {[%clk 0:00:25.4]} 41...
bxc3 {[%clk 0:00:12.2]} 42. Rxc3 {[%clk 0:00:25.6]} 42... h5 {[%clk 0:00:11.6]}
43. Rc6 {[%clk 0:00:25.3]} 43... Ke6 {[%clk 0:00:10.9]} 44. Rca6 {[%clk
0:00:25.1]} 44... Ne5 {[%clk 0:00:10.4]} 45. Kf4 {[%clk 0:00:22.8]} 45... hxg4
{[%clk 0:00:09.1]} 46. hxg4 {[%clk 0:00:23]} 46... Rd4+ {[%clk 0:00:09.6]} 47.
Ke3 {[%clk 0:00:22.8]} 47... Rxg4 {[%clk 0:00:09.5]} 48. Rxa5 {[%clk 0:00:23]}
48... Rg2 {[%clk 0:00:08.5]} 49. R5a6 {[%clk 0:00:22.8]} 49... g5 {[%clk
0:00:08.4]} 50. Rh7 {[%clk 0:00:22.5]} 50... Nf7 {[%clk 0:00:07.2]} 51. Rxf7
{[%clk 0:00:22]} 51... Kxf7 {[%clk 0:00:06.2]} 52. Rxd6 {[%clk 0:00:22.6]} 52...
Rxa2 {[%clk 0:00:06.8]} 53. b4 {[%clk 0:00:21.4]} 53... Rb2 {[%clk 0:00:06.8]}
54. Rb6 {[%clk 0:00:21.4]} 54... Kg7 {[%clk 0:00:05.7]} 55. Ke4 {[%clk
0:00:21.4]} 55... g4 {[%clk 0:00:04.1]} 56. Kf4 {[%clk 0:00:21.8]} 56... Rg2
{[%clk 0:00:04.2]} 57. Rc6 {[%clk 0:00:22]} 57... Kf7 {[%clk 0:00:04.2]} 58. b5
{[%clk 0:00:21.8]} 58... Ke7 {[%clk 0:00:04.4]} 59. b6 {[%clk 0:00:22.1]} 59...
Kd7 {[%clk 0:00:04.7]} 60. Rc7+ {[%clk 0:00:20.9]} 60... Kd8 {[%clk 0:00:04.9]}
61. Rh7 {[%clk 0:00:20.4]} 61... Kc8 {[%clk 0:00:04.6]} 62. b7+ {[%clk
0:00:20.2]} 62... Kb8 {[%clk 0:00:04.8]} 63. Rg7 {[%clk 0:00:20.8]} 63... Rb2
{[%clk 0:00:04.5]} 64. Rxg4 {[%clk 0:00:20.8]} 64... Rb4+ {[%clk 0:00:04.8]} 65.
Kg3 {[%clk 0:00:21.1]} 65... Rxg4+ {[%clk 0:00:05.3]} 66. Kxg4 {[%clk 0:00:22]}
66... Kxb7 {[%clk 0:00:05.7]} 1/2-1/2